[Event "WYCC U16 Girls 2019"]
[Site "Mumbai"]
[Date "2019.10.03"]
[Round "3.12"]
[White "Djidjeli, Sarah"]
[Black "Upase Riddhi"]
[Result "1/2-1/2"]
[ECO "E10"]
[WhiteElo "2017"]
[BlackElo "1343"]
[Annotator "NA"]
[PlyCount "202"]
[EventDate "2019.10.02"]
[EventType "swiss"]
[EventCountry "IND"]
[SourceTitle "playchess.com"]
[Source "ChessBase"]
[SourceQuality "1"]
[WhiteTeam "France"]
[BlackTeam "India"]
[WhiteTeamCountry "FRA"]
[BlackTeamCountry "IND"]
[TimeControl "40/5400+30:1800+30"]

1. d4 {[%emt 0:00:00]} Nf6 {[%emt 0:00:00]} 2. c4 {[%emt 0:00:00]} e6 {[%emt 0:00:00]} 3. Nf3 {[%emt 0:00:56]} d5 {[%emt 0:00:00]} 4. g3 {[%emt 0:00:04]} c6 {[%emt 0:00:12]} 5. Bg2 {[%emt 0:01:24]} Nbd7 {[%emt 0:03:26]} 6. O-O {[%emt 0:04:10]} Bd6 {[%emt 0:01:30]} 7. Qc2 {[%emt 0:01:00]} O-O {[%emt 0:04:17]} 8. Nbd2 {[%emt 0:02:35]} b6 {[%emt 0:01:29]} 9. e4 {[%emt 0:10:08]} dxe4 {[%emt 0:01:55]} 10. Ng5 {[%emt 0:07:19]} Be7 {[%emt 0:03:51]} 11. Ngxe4 {[%emt 0:05:54]} Bb7 {[%emt 0:00:17]} 12. b3 {[%emt 0:04:04]} Qc7 {[%emt 0:01:17]} 13. Bb2 {[%emt 0:08:20]} Rfd8 {[%emt 0:07:52]} 14. Rad1 {[%emt 0:03:24]} Rac8 {[%emt 0:05:45]} 15. Rfe1 {[%emt 0:01:26]} Ba8 {[%emt 0:02:11]} 16. a3 {[%emt 0:09:01]} a5 {[%emt 0:01:11]} 17. c5 {[%emt 0:08:22]} b5 {[%emt 0:02:17]} 18. Nf3 {[%emt 0:03:58]} Nd5 {[%emt 0:04:55]} 19. Neg5 {[%emt 0:01:53]} Nf8 {[%emt 0:03:08]} 20. Bh3 {[%emt 0:05:22]} Bf6 {[%emt 0:15:00]} 21. Ne4 {[%emt 0:01:07]} Be7 {[%emt 0:00:59]} 22. Qe2 {[%emt 0:00:47]} Re8 {[%emt 0:04:02]} 23. Ne5 {[%emt 0:01:49]} f5 {[%emt 0:04:19]} 24. Nc3 {[%emt 0:04:05]} Nxc3 {[%emt 0:01:04]} 25. Bxc3 {[%emt 0:00:05]} Bb7 {[%emt 0:01:47]} 26. Qf3 {[%emt 0:03:51]} Bf6 {[%emt 0:02:09]} 27. Bd2 {[%emt 0:03:52]} Ng6 {[%emt 0:05:23]} 28. Bf4 {[%emt 0:03:22]} Nxf4 {[%emt 0:02:24]} 29. Qxf4 {[%emt 0:00:18]} Rcd8 {[%emt 0:02:03]} 30. Bg2 {[%emt 0:00:34]} Re7 {[%emt 0:04:42]} 31. Qd2 {[%emt 0:02:05]} Bxe5 {[%emt 0:04:31]} 32. Rxe5 {[%emt 0:00:05]} Bc8 {[%emt 0:01:16]} 33. Qe3 {[%emt 0:00:44]} Rde8 {[%emt 0:01:05]} 34. f4 {[%emt 0:01:15]} Kf8 {[%emt 0:02:12]} 35. Re1 {[%emt 0:00:34]} Qd7 {[%emt 0:01:24]} 36. Bf3 {[%emt 0:00:36]} Ba6 {[%emt 0:02:23]} 37. Qc3 {[%emt 0:01:00]} Bb7 {[%emt 0:03:16]} 38. Rd1 {[%emt 0:00:48]} Qc7 {[%emt 0:00:10]} 39. Qe1 {[%emt 0:00:28]} Bc8 {[%emt 0:01:07]} 40. Qe2 {[%emt 0:01:09]} Bd7 {[%emt 0:00:34]} 41. Qg2 {[%emt 0:31:16]} Rd8 {[%emt 0:32:05]} 42. Qh3 {[%emt 0:00:00]} Kg8 {[%emt 0:00:00]} 43. Kf2 {[%emt 0:00:00]} Rf8 {[%emt 0:00:00]} 44. Qf1 {[%emt 0:00:00]} Ref7 {[%emt 0:00:00]} 45. Qe1 {[%emt 0:00:00]} Rf6 {[%emt 0:00:00]} 46. Ra1 {[%emt 0:00:00]} Rb8 {[%emt 0:00:00]} 47. b4 {[%emt 0:00:00]} a4 {[%emt 0:00:00]} 48. Rd1 {[%emt 0:00:00]} Rd8 {[%emt 0:00:00]} 49. Qh1 {[%emt 0:00:00]} Qc8 {[%emt 0:00:00]} 50. Rd2 {[%emt 0:00:00]} Be8 {[%emt 0:00:00]} 51. Qe1 {[%emt 0:00:00]} Bf7 {[%emt 0:00:00]} 52. Ke3 {[%emt 0:00:00]} Qd7 {[%emt 0:00:00]} 53. Qh1 {[%emt 0:00:00]} Be8 {[%emt 0:00:00]} 54. Bd1 {[%emt 0:00:00]} Rh6 {[%emt 0:00:00]} 55. Bc2 {[%emt 0:00:00]} Qf7 {[%emt 0:00:00]} 56. Bb1 {[%emt 0:00:00]} Bd7 {[%emt 0:00:00]} 57. Ba2 {[%emt 0:00:00]} Rf6 {[%emt 0:00:00]} 58. Kd3 {[%emt 0:00:00]} Re8 {[%emt 0:00:00]} 59. Kc3 {[%emt 0:00:00]} Qf8 {[%emt 0:00:00]} 60. Rde2 {[%emt 0:00:00]} Qf7 {[%emt 0:00:00]} 61. Qe1 {[%emt 0:00:00]} Kf8 {[%emt 0:00:00]} 62. Qf1 {[%emt 0:00:31]} Qh5 {[%emt 0:00:00]} 63. Qg2 {[%emt 0:01:53]} g5 {[%emt 0:00:00]} 64. g4 {[%emt 0:05:54]} Qxg4 {[%emt 0:00:00]} 65. Qxg4 {[%emt 0:00:05]} fxg4 {[%emt 0:00:00]} 66. fxg5 {[%emt 0:00:19]} Rf3+ {[%emt 0:00:00]} 67. Kb2 {[%emt 0:00:03]} Kf7 {[%emt 0:01:47]} 68. R5e4 {[%emt 0:00:16]} g3 {[%emt 0:02:34]} 69. Rh4 {[%emt 0:02:36]} Kg8 {[%emt 0:00:30]} 70. hxg3 {[%emt 0:01:31]} Rxg3 {[%emt 0:00:02]} 71. Reh2 {[%emt 0:00:30]} Rxg5 {[%emt 0:02:19]} 72. Rxh7 {[%emt 0:00:03]} Rg2+ {[%emt 0:00:01]} 73. Rxg2+ {[%emt 0:00:10]} Kxh7 {[%emt 0:00:01]} 74. Bb1+ {[%emt 0:00:19]} Kh8 {[%emt 0:01:05]} 75. Rh2+ {[%emt 0:01:45]} Kg8 {[%emt 0:00:02]} 76. Rh7 {[%emt 0:00:05]} Rd8 {[%emt 0:00:30]} 77. Kc3 {[%emt 0:00:13]} Kf8 {[%emt 0:01:33]} 78. Ba2 {[%emt 0:01:01]} e5 {[%emt 0:03:28]} 79. Rf7+ {[%emt 0:00:49]} Ke8 {[%emt 0:00:33]} 80. dxe5 {[%emt 0:00:06]} Bh3 {[%emt 0:02:43]} 81. Rf6 {[%emt 0:00:20]} Bg2 {[%emt 0:01:10]} 82. Rd6 {[%emt 0:01:14]} Ke7 {[%emt 0:02:09]} 83. Kd4 {[%emt 0:00:38]} Rh8 {[%emt 0:00:13]} 84. e6 {[%emt 0:01:21]} Rh4+ {[%emt 0:00:34]} 85. Kc3 {[%emt 0:00:40]} Be4 {[%emt 0:00:45]} 86. Rd7+ {[%emt 0:00:29]} Ke8 {[%emt 0:00:01]} 87. Rd2 {[%emt 0:00:35]} Bf5 {[%emt 0:00:55]} 88. Rf2 {[%emt 0:00:29]} Bh7 {[%emt 0:00:39]} 89. Kb2 {[%emt 0:00:44]} Be4 {[%emt 0:00:37]} 90. Bb1 {[%emt 0:00:35]} Bxb1 {[%emt 0:00:31]} 91. Kxb1 {[%emt 0:00:01]} Re4 {[%emt 0:00:09]} 92. Kc2 {[%emt 0:00:30]} Re3 {[%emt 0:00:54]} 93. Kb2 {[%emt 0:00:32]} Ke7 {[%emt 0:00:20]} 94. Rd2 {[%emt 0:00:09]} Rxe6 {[%emt 0:00:17]} 95. Kc3 {[%emt 0:00:53]} Re3+ {[%emt 0:00:18]} 96. Rd3 {[%emt 0:00:03]} Re4 {[%emt 0:00:26]} 97. Rd6 {[%emt 0:00:22]} Re3+ {[%emt 0:01:10]} 98. Rd3 {[%emt 0:00:22]} Re4 {[%emt 0:00:21]} 99. Rd6 {[%emt 0:00:04]} Re6 {[%emt 0:00:05]} 100. Rxe6+ {[%emt 0:00:53]} Kxe6 {[%emt 0:00:01]} 101. Kd4 {[%emt 0:00:05]} Kf5 {[%emt 0:00:03] Ke4+ Ke5+} 1/2-1/2

[Event "WYCC U16 Girls 2019"]
[Site "Mumbai"]
[Date "2019.10.04"]
[Round "4.1"]
[White "Lakshmi C"]
[Black "Garifullina, Leya"]
[Result "*"]
[ECO "C95"]
[WhiteElo "1859"]
[BlackElo "2330"]
[Annotator "NA"]
[PlyCount "26"]
[EventDate "2019.10.02"]
[EventType "swiss"]
[EventCountry "IND"]
[SourceTitle "playchess.com"]
[Source "ChessBase"]
[SourceQuality "1"]
[TimeControl "40/5400+30:1800+30"]

1. e4 e5 2. Nf3 Nc6 3. Bb5 a6 4. Ba4 Nf6 5. O-O b5 6. Bb3 Be7 7. Re1 d6 8. c3 O-O 9. h3 Nb8 10. d4 Nbd7 11. Nbd2 Bb7 12. Bc2 Re8 13. Nf1 Bf8 *

[Event "WYCC U16 Girls 2019"]
[Site "Mumbai"]
[Date "2019.10.04"]
[Round "4.2"]
[White "Nurgali, Nazerke"]
[Black "Salonika, Saina"]
[Result "*"]
[ECO "A46"]
[WhiteElo "2194"]
[BlackElo "2051"]
[Annotator "NA"]
[PlyCount "22"]
[EventDate "2019.10.02"]
[EventType "swiss"]
[EventCountry "IND"]
[SourceTitle "playchess.com"]
[Source "ChessBase"]
[SourceQuality "1"]
[TimeControl "40/5400+30:1800+30"]

1. d4 Nf6 2. Nf3 e6 3. a3 Nc6 4. e3 d5 5. b3 Bd7 6. Bb2 Bd6 7. Bd3 O-O 8. Nbd2 a6 9. O-O b5 10. Ne5 Rb8 11. f4 Ne7 *

[Event "WYCC U16 Girls 2019"]
[Site "Mumbai"]
[Date "2019.10.04"]
[Round "4.3"]
[White "Beydullayeva, Govhar"]
[Black "Jain Nityata"]
[Result "*"]
[ECO "A05"]
[WhiteElo "2289"]
[BlackElo "2029"]
[Annotator "NA"]
[PlyCount "20"]
[EventDate "2019.10.02"]
[EventType "swiss"]
[EventCountry "IND"]
[SourceTitle "playchess.com"]
[Source "ChessBase"]
[SourceQuality "1"]
[TimeControl "40/5400+30:1800+30"]

1. Nf3 Nf6 2. c4 g6 3. Nc3 d5 4. cxd5 Nxd5 5. Qb3 Nb6 6. d4 Bg7 7. Bf4 O-O 8. Rd1 Nc6 9. e3 Bg4 10. Be2 e5 *

[Event "WYCC U16 Girls 2019"]
[Site "Mumbai"]
[Date "2019.10.04"]
[Round "4.4"]
[White "Demchenko, Svitlana"]
[Black "Mahdian, Anousha"]
[Result "*"]
[ECO "C00"]
[WhiteElo "1953"]
[BlackElo "2103"]
[Annotator "NA"]
[PlyCount "20"]
[EventDate "2019.10.02"]
[EventType "swiss"]
[EventCountry "IND"]
[SourceTitle "playchess.com"]
[Source "ChessBase"]
[SourceQuality "1"]
[TimeControl "40/5400+30:1800+30"]

1. e4 e6 2. Nf3 d5 3. exd5 exd5 4. Ne5 Nf6 5. d4 g6 6. Bd3 Bg7 7. O-O O-O 8. Be3 Nc6 9. Qd2 Nxe5 10. dxe5 Ne4 *

[Event "WYCC U16 Girls 2019"]
[Site "Mumbai"]
[Date "2019.10.04"]
[Round "4.6"]
[White "Bristy Mukherjee"]
[Black "Mrudul Dehankar"]
[Result "*"]
[ECO "B23"]
[WhiteElo "1852"]
[BlackElo "2227"]
[Annotator "NA"]
[PlyCount "33"]
[EventDate "2019.10.02"]
[EventType "swiss"]
[EventCountry "IND"]
[SourceTitle "playchess.com"]
[Source "ChessBase"]
[SourceQuality "1"]
[TimeControl "40/5400+30:1800+30"]

1. e4 c5 2. Nc3 Nc6 3. f4 g6 4. Nf3 Bg7 5. Bb5 Nd4 6. O-O Nxb5 7. Nxb5 d5 8. exd5 a6 9. Nc3 Nf6 10. d4 c4 11. Ne5 Ne4 12. Nxc4 Nxc3 13. bxc3 Qc7 14. Ne5 Qxc3 15. Rb1 O-O 16. Qe2 Qc7 17. Ba3 *

[Event "WYCC U16 Girls 2019"]
[Site "Mumbai"]
[Date "2019.10.05"]
[Round "5.3"]
[White "Mrudul Dehankar"]
[Black "Bommini Mounika Akshaya"]
[Result "*"]
[ECO "C11"]
[WhiteElo "2227"]
[BlackElo "2017"]
[Annotator "ChessBase"]
[PlyCount "29"]
[EventDate "2019.10.02"]
[EventType "swiss"]
[EventCountry "IND"]
[SourceTitle "playchess.com"]
[Source "ChessBase"]
[SourceQuality "1"]
[TimeControl "5400+30"]

1. e4 {[%emt 0:00:00]} e6 {[%emt 0:00:00]} 2. Nf3 {[%emt 0:00:04]} d5 {[%emt 0:00:03]} 3. Nc3 {[%emt 0:00:10]} Nf6 {[%emt 0:00:14]} 4. e5 {[%emt 0:00:11]} Nfd7 {[%emt 0:00:31]} 5. d4 {[%emt 0:00:10]} c5 {[%emt 0:00:19]} 6. dxc5 {[%emt 0:00:18]} Nxc5 {[%emt 0:04:01]} 7. Bf4 {[%emt 0:10:23]} a6 {[%emt 0:02:48]} 8. a3 {[%emt 0:02:00]} Nc6 {[%emt 0:07:44]} 9. h4 {[%emt 0:08:33]} b5 {[%emt 0:07:54]} 10. Be2 {[%emt 0:13:57]} Be7 {[%emt 0:07:20]} 11. Rh3 {[%emt 0:05:56]} Bb7 {[%emt 0:11:36]} 12. Kf1 {[%emt 0:08:45]} Qc7 {[%emt 0:03:39]} 13. Nd4 {[%emt 0:05:20]} Nxe5 {[%emt 0:11:58]} 14. Re3 {[%emt 0:03:20]} Ne4 {[%emt 0:07:39]} 15. Qe1 {[%emt 0:26:04]} *

[Event "WYCC U16 Girls 2019"]
[Site "Mumbai"]
[Date "2019.10.05"]
[Round "5.5"]
[White "Ciolacu, Alessia-Mihaela"]
[Black "Lakshmi C"]
[Result "*"]
[ECO "E91"]
[WhiteElo "2095"]
[BlackElo "1859"]
[Annotator "NA"]
[PlyCount "41"]
[EventDate "2019.10.02"]
[EventType "swiss"]
[EventCountry "IND"]
[SourceTitle "playchess.com"]
[Source "ChessBase"]
[SourceQuality "1"]
[TimeControl "5400+30"]

{[%evp 16,34,45,32,68,32767,32767,131,32767,32767,32767,166,152,161,32767,176,178,181,176,165,163]} 1. d4 {[%emt 0:00:00]} Nf6 {[%emt 0:00:04]} 2. Nf3 {[%emt 0:00:00]} g6 {[%emt 0:00:07]} 3. c4 {[%emt 0:02:04]} Bg7 {[%emt 0:00:11]} 4. Nc3 {[%emt 0:00:07]} O-O {[%emt 0:00:11]} 5. e4 {[%emt 0:00:34]} d6 {[%emt 0:00:15]} 6. Be2 {[%emt 0:02:04]} Nc6 {[%emt 0:00:40]} 7. d5 {[%emt 0:03:47]} Nb8 {[%emt 0:04:05]} 8. h3 {[%emt 0:05:59]} Nbd7 {[%emt 0:11:44]} 9. Be3 {[%emt 0:02:35]} e5 {[%emt 0:06:39]} 10. g4 {[%emt 0:10:56]} Qe7 {[%emt 0:14:12] [#]} 11. Nd2 $1 {[%emt 0:03:50]} Ne8 {[%emt 0:09:10]} 12. h4 {[%emt 0:02:22]} h6 {[%emt 0:00:32]} 13. Nf1 {[%emt 0:10:35]} a5 {[%emt 0:13:40]} 14. Ng3 {[%emt 0:00:16]} Nc5 {[%emt 0:00:31]} 15. Qd2 {[%emt 0:06:16]} Kh7 {[%emt 0:01:37]} 16. O-O-O {[%emt 0:02:56]} a4 {[%emt 0:04:41]} 17. Kb1 {[%emt 0:04:18]} Bd7 $18 {[%emt 0:05:18]} 18. Rdg1 {[%emt 0:03:30]} c6 {[%emt 0:02:42]} 19. Rd1 {[%emt 0:06:31]} b6 {[%emt 0:02:37]} 20. dxc6 {[%emt 0:02:00]} Bxc6 {[%emt 0:00:09]} 21. Nd5 {[%emt 0:00:26]} *

[Event "WYCC U16 Girls 2019"]
[Site "Mumbai"]
[Date "2019.10.05"]
[Round "5.5"]
[White "Ciolacu, Alessia-Mihaela"]
[Black "Lakshmi, C."]
[Result "1-0"]
[ECO "E91"]
[WhiteElo "2095"]
[BlackElo "1859"]
[Annotator "NA RC"]
[PlyCount "81"]
[EventDate "2019.10.02"]
[EventType "swiss"]
[EventCountry "IND"]
[SourceTitle "playchess.com"]
[Source "ChessBase"]
[SourceQuality "1"]
[TimeControl "5400+30"]

1. d4 {[%emt 0:00:00]} Nf6 {[%emt 0:00:04]} 2. Nf3 {[%emt 0:00:00]} g6 {[%emt 0:00:07]} 3. c4 {[%emt 0:02:04]} Bg7 {[%emt 0:00:11]} 4. Nc3 {[%emt 0:00:07]} O-O {[%emt 0:00:11]} 5. e4 {[%emt 0:00:34]} d6 {[%emt 0:00:15]} 6. Be2 {[%emt 0:02:04]} Nc6 {[%emt 0:00:40]} 7. d5 {[%emt 0:03:47]} Nb8 {[%emt 0:04:05]} 8. h3 {[%emt 0:05:59]} Nbd7 {[%emt 0:11:44]} 9. Be3 {[%emt 0:02:35]} e5 {[%emt 0:06:39]} 10. g4 {[%emt 0:10:56]} Qe7 {[%emt 0:14:12] [#]} 11. Nd2 $1 {[%emt 0:03:50]} Ne8 {[%emt 0:09:10]} 12. h4 {[%emt 0:02:22]} h6 {[%emt 0:00:32]} 13. Nf1 {[%emt 0:10:35]} a5 {[%emt 0:13:40]} 14. Ng3 {[%emt 0:00:16]} Nc5 {[%emt 0:00:31]} 15. Qd2 {[%emt 0:06:16]} Kh7 {[%emt 0:01:37]} 16. O-O-O {[%emt 0:02:56]} a4 {[%emt 0:04:41]} 17. Kb1 {[%emt 0:04:18]} Bd7 $18 {[%emt 0:05:18]} 18. Rdg1 {[%emt 0:03:30]} c6 {[%emt 0:02:42]} 19. Rd1 {[%emt 0:06:31]} b6 {[%emt 0:02:37]} 20. dxc6 {[%emt 0:02:00]} Bxc6 {[%emt 0:00:09]} 21. Nd5 {[%emt 0:00:26]} Qa7 {[%emt 0:05:38]} 22. h5 {[%emt 0:09:51]} g5 {[%emt 0:05:56]} 23. Nf5 {[%emt 0:05:00]} f6 {[%emt 0:00:34]} 24. f3 {[%emt 0:01:18]} Bd7 {[%emt 0:07:56]} 25. Nc3 {[%emt 0:03:01]} Bxf5 {[%emt 0:02:00]} 26. exf5 {[%emt 0:01:00]} Rd8 {[%emt 0:00:44]} 27. Qd5 {[%emt 0:01:14]} Rf7 {[%emt 0:00:56]} 28. Rd2 {[%emt 0:01:21]} Rfd7 {[%emt 0:00:23]} 29. Rhd1 {[%emt 0:00:41]} Qa5 {[%emt 0:00:32]} 30. Ne4 {[%emt 0:03:56]} Nc7 {[%emt 0:00:38]} 31. Qc6 {[%emt 0:00:11]} Nb3 {[%emt 0:00:32]} 32. Rxd6 {[%emt 0:00:57]} Rxd6 {[%emt 0:00:12]} 33. Nxd6 {[%emt 0:00:07]} Na8 {[%emt 0:00:50]} 34. Qb7 {[%emt 0:01:49]} Qb4 {[%emt 0:00:32]} 35. Ne4 {[%emt 0:00:20]} Rxd1+ {[%emt 0:00:28]} 36. Bxd1 {[%emt 0:00:01]} Qf8 {[%emt 0:00:31]} 37. axb3 {[%emt 0:00:09]} Qd8 {[%emt 0:00:25]} 38. Bc2 {[%emt 0:00:42]} axb3 {[%emt 0:00:36]} 39. Bxb3 {[%emt 0:00:04]} Nc7 {[%emt 0:00:25]} 40. Bxb6 {[%emt 0:00:20]} Qd3+ {[%emt 0:00:08]} 41. Ka2 {[%emt 0:00:20]} 1-0

[Event "WYCC U16 Girls 2019"]
[Site "Mumbai"]
[Date "2019.10.05"]
[Round "5.6"]
[White "Juhasz, Judit"]
[Black "Zhang, Xiao"]
[Result "1-0"]
[ECO "B12"]
[WhiteElo "2004"]
[BlackElo "2053"]
[Annotator "NA RC"]
[PlyCount "55"]
[EventDate "2019.10.02"]
[EventType "swiss"]
[EventCountry "IND"]
[SourceTitle "playchess.com"]
[Source "ChessBase"]
[SourceQuality "1"]
[TimeControl "5400+30"]

1. e4 {[%emt 0:00:00]} c6 {[%emt 0:00:00]} 2. d4 {[%emt 0:00:00]} d5 {[%emt 0:00:00]} 3. e5 {[%emt 0:00:00]} Bf5 {[%emt 0:00:00]} 4. h4 {[%emt 0:00:00]} h5 {[%emt 0:00:09]} 5. Bd3 {[%emt 0:00:06]} Bxd3 {[%emt 0:00:08]} 6. Qxd3 {[%emt 0:00:05]} e6 {[%emt 0:00:06]} 7. Bg5 {[%emt 0:00:12] B12: Caro-Kann: Advance Variation} Qb6 {[%emt 0:00:07]} (7... Be7 8. Nf3 Nh6 9. Nbd2 Nf5 10. Nf1 Qa5+ 11. c3 Qa6 12. Qd2 Nd7 13. Ng3 Nxg3 14. fxg3 f6 {½-½ (72) Inarkiev,E (2693)-Tomashevsky,E (2705) St Petersburg 2018}) 8. Nd2 {[%emt 0:00:13]} Qa6 {[%emt 0:00:15]} 9. c4 {[%emt 0:00:36]} Bb4 {[%emt 0:00:50]} 10. b3 {[%emt 0:01:05]} c5 {[%emt 0:02:05]} 11. dxc5 {[%emt 0:03:41]} Nd7 $146 {[%emt 0:09:17]} ({Predecessor:} 11... Nc6 12. Ngf3 Nge7 13. Bxe7 Nxe7 14. O-O Bxc5 {0-1 (56) Jose Abril,R (2337)-Grigoryan,K (2582) Badalona 2015}) 12. Ngf3 {[%emt 0:03:19]} Nxc5 {[%emt 0:00:47]} 13. Qe2 {[%emt 0:02:47] [#]} (13. Qe3 $16) 13... Nxb3 $1 {[%emt 0:13:21]} 14. Rb1 {[%emt 0:09:14] Pin} Bxd2+ {[%emt 0:03:05]} 15. Bxd2 {[%emt 0:02:26]} Qxa2 {[%emt 0:13:43]} 16. O-O {[%emt 0:01:16]} O-O-O {[%emt 0:04:44]} 17. cxd5 {[%emt 0:02:02]} Nxd2 {[%emt 0:01:06]} 18. Rfc1+ {[%emt 0:01:31]} Kb8 {[%emt 0:00:27]} 19. Rxb7+ {[%emt 0:04:02]} Ka8 {[%emt 0:00:49]} 20. Nxd2 {[%emt 0:00:30]} Rxd5 {[%emt 0:05:03]} 21. Rcb1 {[%emt 0:15:05]} Nh6 {[%emt 0:02:24]} 22. R7b2 {[%emt 0:02:19]} Qa4 {[%emt 0:09:37]} 23. Nc4 {[%emt 0:01:01]} Qc6 {[%emt 0:01:07] [#]} 24. Nb6+ {[%emt 0:00:38] Double Attack} axb6 {[%emt 0:02:02]} 25. Qa6+ {[%emt 0:00:06]} Kb8 {[%emt 0:00:02]} 26. Rxb6+ {[%emt 0:00:07]} Qxb6 {[%emt 0:00:03]} 27. Rxb6+ {[%emt 0:00:19]} Kc7 {[%emt 0:00:02]} 28. Rb7+ {[%emt 0:00:16]} 1-0

[Event "WYCC U16 Girls 2019"]
[Site "Mumbai"]
[Date "2019.10.05"]
[Round "5.7"]
[White "Salonika, Saina"]
[Black "Noshin, Anjum"]
[Result "1-0"]
[ECO "C77"]
[WhiteElo "2051"]
[BlackElo "1793"]
[Annotator "NA RC"]
[PlyCount "67"]
[EventDate "2019.10.02"]
[EventType "swiss"]
[EventCountry "IND"]
[SourceTitle "playchess.com"]
[Source "ChessBase"]
[SourceQuality "1"]
[TimeControl "5400+30"]

1. e4 {[%emt 0:00:00]} e5 {[%emt 0:00:00]} 2. Nf3 {[%emt 0:00:00]} Nc6 {[%emt 0:00:00]} 3. Bb5 {[%emt 0:00:00]} a6 {[%emt 0:00:00]} 4. Ba4 {[%emt 0:00:00]} Nf6 {[%emt 0:00:00]} 5. d3 {[%emt 0:00:00]} b5 {[%emt 0:01:58]} 6. Bb3 {[%emt 0:00:00]} Bc5 {[%emt 0:01:03]} 7. O-O {[%emt 0:00:15]} d6 {[%emt 0:00:55]} 8. c3 {[%emt 0:00:24]} O-O {[%emt 0:00:50]} 9. Bg5 {[%emt 0:05:16]} h6 {[%emt 0:01:54]} 10. Bh4 {[%emt 0:01:44]} Bb6 {[%emt 0:15:20]} 11. d4 {[%emt 0:07:36]} Bb7 {[%emt 0:11:00]} 12. Bd5 {[%emt 0:05:47]} (12. d5 $11 {remains equal.} Na5 13. Bc2) 12... Re8 {[%emt 0:06:12]} (12... g5 $17 13. Nxg5 Nxd5 14. exd5 hxg5 15. dxc6 Bxc6) 13. a4 {[%emt 0:05:56]} Qe7 {[%emt 0:09:37]} 14. Na3 {[%emt 0:07:39]} (14. Bxf6 $11 Qxf6 15. axb5 axb5 16. Rxa8 Bxa8 17. Qd3) 14... g5 {[%emt 0:19:34]} 15. Nxg5 {[%emt 0:14:01]} hxg5 {[%emt 0:01:56]} (15... Nxd5 $17 16. Nf3 Nf6 17. axb5 axb5) 16. Bxg5 $11 {[%emt 0:03:06]} Nd8 {[%emt 0:22:49]} 17. Bxb7 {[%emt 0:01:05]} Nxb7 {[%emt 0:00:07]} 18. Qf3 {[%emt 0:10:22]} Kg7 {[%emt 0:00:20]} 19. Nc2 {[%emt 0:01:24]} c6 {[%emt 0:04:26]} 20. Ne3 {[%emt 0:00:26]} Qe6 {[%emt 0:01:00]} 21. d5 {[%emt 0:05:36]} cxd5 {[%emt 0:00:08]} 22. Bxf6+ {[%emt 0:00:30]} Qxf6 {[%emt 0:00:23]} 23. Qxf6+ {[%emt 0:00:04]} Kxf6 {[%emt 0:00:04]} 24. Nxd5+ {[%emt 0:00:03]} Ke6 {[%emt 0:00:35]} 25. Nxb6 {[%emt 0:00:06]} Rab8 {[%emt 0:00:35]} 26. axb5 {[%emt 0:00:49]} axb5 {[%emt 0:00:16]} 27. b4 {[%emt 0:03:21]} Nd8 {[%emt 0:01:34]} 28. Nd5 {[%emt 0:00:06]} Rb7 {[%emt 0:00:15]} 29. f4 {[%emt 0:06:26]} f5 {[%emt 0:00:47]} 30. fxe5 {[%emt 0:00:08]} fxe4 {[%emt 0:00:10]} 31. Nf6 {[%emt 0:00:07]} Rf8 {[%emt 0:00:23]} 32. Ra6 {[%emt 0:00:22]} e3 {[%emt 0:01:00]} 33. Rxd6+ {[%emt 0:04:03]} Kxe5 {[%emt 0:00:08]} 34. Rd3 {[%emt 0:00:10] Kd5} 1-0

[Event "WYCC U16 Girls 2019"]
[Site "Mumbai"]
[Date "2019.10.05"]
[Round "5.8"]
[White "Mehendi, Sil"]
[Black "Greeshma, Anand Dhumal"]
[Result "1-0"]
[ECO "D10"]
[WhiteElo "1812"]
[BlackElo "1990"]
[Annotator "NA RC"]
[PlyCount "85"]
[EventDate "2019.10.02"]
[EventType "swiss"]
[EventCountry "IND"]
[SourceTitle "playchess.com"]
[Source "ChessBase"]
[SourceQuality "1"]
[TimeControl "5400+30"]

1. d4 d5 2. c4 c6 3. cxd5 cxd5 4. Bf4 Nc6 5. Nc3 a6 6. e3 Nf6 7. Nf3 e6 8. Be2 Bd6 9. Bxd6 Qxd6 10. O-O O-O 11. a3 b5 12. Rc1 Na5 13. Ne5 Nc4 14. Bxc4 dxc4 15. a4 Bb7 16. f3 Nd5 17. Nxd5 (17. Qd2 $11 {remains equal.}) 17... exd5 $17 18. b3 f6 19. Ng4 Rfc8 20. bxc4 dxc4 21. e4 Rd8 22. d5 f5 23. Nf2 Rac8 24. Qd4 Bc6 25. Qb6 Be8 26. Qxd6 Rxd6 27. axb5 axb5 28. Rfd1 Rcd8 29. Rd4 Kf8 30. Rcd1 Bc6 31. dxc6 Rxd4 32. Rxd4 Rc8 33. Rd5 b4 34. Rxf5+ Ke7 35. Rc5 c3 36. Rc4 Kd6 37. Nd3 Rxc6 38. Rxc6+ Kxc6 39. Nxb4+ Kb5 40. Nc2 Kc4 41. Kf2 Kd3 42. Ne1+ Kd2 43. e5 1-0

[Event "WYCC U16 Girls 2019"]
[Site "Mumbai"]
[Date "2019.10.05"]
[Round "5.8"]
[White "Mehendi Sil"]
[Black "Greeshma Anand Dhumal"]
[Result "*"]
[ECO "D10"]
[WhiteElo "1812"]
[BlackElo "1990"]
[Annotator "NA"]
[PlyCount "39"]
[EventDate "2019.10.02"]
[EventType "swiss"]
[EventCountry "IND"]
[SourceTitle "playchess.com"]
[Source "ChessBase"]
[SourceQuality "1"]
[TimeControl "5400+30"]

1. d4 d5 2. c4 c6 3. cxd5 cxd5 4. Bf4 Nc6 5. Nc3 a6 6. e3 Nf6 7. Nf3 e6 8. Be2 Bd6 9. Bxd6 Qxd6 10. O-O O-O 11. a3 b5 12. Rc1 Na5 13. Ne5 Nc4 14. Bxc4 dxc4 15. a4 Bb7 16. f3 Nd5 17. Nxd5 (17. Qd2 $11 {remains equal.}) 17... exd5 $17 18. b3 f6 19. Ng4 Rfc8 20. bxc4 *

[Event "WYCC U16 Girls 2019"]
[Site "Mumbai"]
[Date "2019.10.05"]
[Round "5.10"]
[White "Poorna, Sri M.K"]
[Black "Hajiyeva, Laman"]
[Result "1/2-1/2"]
[ECO "C13"]
[WhiteElo "1787"]
[BlackElo "2038"]
[Annotator "NA RC"]
[PlyCount "84"]
[EventDate "2019.10.02"]
[EventType "swiss"]
[EventCountry "IND"]
[SourceTitle "playchess.com"]
[Source "ChessBase"]
[SourceQuality "1"]
[TimeControl "5400+30"]

1. e4 e6 2. d4 d5 3. Nc3 Nf6 4. Bg5 Be7 5. e5 Nfd7 6. h4 h6 7. Bxe7 Qxe7 8. f4 a6 {C14: French: Classical System: 4 Bg5 Be7 main line} 9. Nf3 c5 10. Qd2 Nc6 11. Ne2 (11. Bd3 b6 12. Nd1 cxd4 13. Nf2 Nc5 14. Be2 Bd7 15. O-O-O Rc8 16. Kb1 O-O 17. g4 Rfd8 18. Nxd4 Nxd4 19. Qxd4 Bb5 20. Bd3 Bc4 21. Bxc4 {½-½ (21) Liang,A (2599)-Moradiabadi,E (2537) Greensboro 2019}) 11... b5 12. g4 Bb7 13. Ng3 f6 $146 ({Predecessor:} 13... cxd4 14. Nxd4 Nxd4 15. Qxd4 {½-½ (41) Hallenberg,S (2155)-Eloranta,K (2030) Finland 2008}) 14. O-O-O fxe5 15. dxe5 O-O-O 16. h5 Rhe8 17. g5 Nb6 18. gxh6 gxh6 19. f5 $15 Qg7 20. Qf4 Qf8 21. Nh4 c4 22. f6 Na4 23. f7 Nxe5 24. Qxe5 Qxf7 25. Bh3 c3 26. bxc3 Qe7 27. Rhe1 Qxh4 28. Bxe6+ Rxe6 29. Qxe6+ Kb8 30. Qe5+ Ka8 31. Rd4 Qh2 32. Nf5 Qxh5 33. Rf4 Qg5 34. Ref1 Rc8 35. Qe3 Rxc3 36. Qd2 Rc8 37. Nd6 Rc7 38. Qe3 Nc5 39. Nxb7 Kxb7 40. Kb1 Ne4 41. Qd3 Nc3+ 42. Kb2 Ne4 1/2-1/2